Cogmind - Beta 9.3 @@@ ROGUE MODE // 2019.12.21 @ 18:08:38 Player: Joel Result: Smashed by cave-in Performance ------------- Evolutions (1) 500 Regions Visited (5) 1000 Robots Destroyed (53) 265 Value Destroyed (1144) 1144 Prototype IDs (2) 40 Alien Tech Used (0) 0 Bonus (2) 2 TOTAL SCORE: 2951 Bonus ------- High Alert Combat Kills 2 Cogmind --------- Core Integrity 0/400 Matter 267/300 Energy 125/125 System Corruption 4% Temperature Cool (182) Movement Rolling (80) Location -8/Mines Parts ------- > --- POWER (1) -------- Light Ion Engine > --- PROPULSION (4) --- Wheel Wheel > --- UTILITY (2) ------ Small Storage Unit > --- WEAPON (2) ------- Heavy Assault Rifle Heavy Assault Rifle > --- INVENTORY (6) ---- Improved Ion Engine Heavy EM Pulse Gun Heavy EM Pulse Gun Improved EM Shotgun Mini Grenade Launcher Peak State ------------ > --- POWER ------------ Ion Engine > --- PROPULSION ------- Aluminum Leg Aluminum Leg Aluminum Leg Aluminum Leg > --- UTILITY ---------- Small Storage Unit Shield Generator > --- WEAPON ----------- Improved EM Shotgun Advanced Beam Cannon > --- INVENTORY -------- Improved Ion Engine Heavy EM Pulse Gun Heavy EM Pulse Gun Heavy Assault Rifle Heavy Assault Rifle Mini Grenade Launcher [Rating: 15] Favorites ----------- Power Ion Engine Engine Ion Engine Power Core Light Nuclear Core Propulsion Aluminum Leg Leg Aluminum Leg Wheel Wheel Utility Small Storage Unit Device Heat Sink Storage Small Storage Unit Processor Terrain Scan Processor Weapon Heavy Assault Rifle Energy Gun Improved EM Shotgun Energy Cannon Advanced Beam Cannon Ballistic Gun Heavy Assault Rifle Launcher Mini Grenade Launcher Impact Weapon Hammer Build | -11 -10 -9 -9 -9 -8 ------- Run | Scr Mat Mat Min Exi Min Slots Evolved 2 | . . 2 . . . Power . | . . . . . . Propulsion 2 | . . 2 . . . Utility . | . . . . . . Weapon . | . . . . . . Parts Attached 76 | 6 35 23 . . 12 Power 19 | 1 8 7 . . 3 Engine 15 | 1 6 5 . . 3 Core 4 | . 2 2 . . . Reactor . | . . . . . . Propulsion 17 | 2 8 3 . . 4 Treads . | . . . . . . Leg 13 | 2 8 3 . . . Wheel 4 | . . . . . 4 Hover . | . . . . . . Flight . | . . . . . . Utility 6 | 1 1 3 . . 1 Device 3 | . 1 2 . . . Storage 2 | 1 . 1 . . . Processor 1 | . . . . . 1 Hackware . | . . . . . . Protection . | . . . . . . Artifact . | . . . . . . Weapon 34 | 2 18 10 . . 4 Energy Gun 12 | . 10 1 . . 1 Energy Cannon 2 | . . 2 . . . Ballistic Gun 13 | 2 4 5 . . 2 Ballistic Cannon . | . . . . . . Launcher 3 | . 1 1 . . 1 Special Weapon . | . . . . . . Impact Weapon 4 | . 3 1 . . . Slashing Weapon . | . . . . . . Piercing Weapon . | . . . . . . Special Melee Weapon . | . . . . . . Unidentified Prototypes 2 | . . 2 . . . Parts Lost 13 | . 4 2 . . 7 Power 1 | . . 1 . . . Propulsion 5 | . 1 . . . 4 Utility 2 | . . . . . 2 Weapon 5 | . 3 1 . . 1 Highest Loss Streak 4 | . 2 2 . . 4 Average Slot Usage (%) 83 | . 87 78 100 100 80 Engine 9 | . 8 8 11 11 11 Core 2 | . 4 2 . . . Leg 24 | . 25 25 44 44 18 Wheel 4 | . . . . . 14 Device 6 | . 7 11 11 11 . Storage 11 | . 14 10 11 11 11 Energy Gun 7 | . 10 1 11 11 10 Energy Cannon 3 | . . 1 11 11 10 Ballistic Gun 9 | . 11 16 . . . Impact Weapon 2 | . 4 1 . . . Naked Turns . | . . . . . . Heaviest Build 19 | 12 16 19 18 18 18 Greatest Support 40 | 20 20 40 40 40 40 Greatest Overweight (x) 2 | 2 2 . . . 1 Average Overweight (x) . | . . . . . . Largest Inventory Capacity 6 | 6 6 6 6 6 6 Average Capacity 5 | 5 6 5 6 6 6 Most Carried 6 | 6 6 6 6 6 6 Average Carried 5 | 3 5 5 6 6 5 Final Capacity 6 | 6 6 6 6 6 6 Final Carried 6 | 6 6 6 6 6 5 Class Distribution -------------------- 51% | Scavenger-Mutant 48% | Mutant Dominant Class ---------------- Mutant | -10/Materials Mutant | -9/Materials Scavenger-Mutant | -9/Mines Scavenger-Mutant | -9/Exiles Scavenger-Mutant | -8/Mines Resources | -11 -10 -9 -9 -9 -8 ----------- Run | Scr Mat Mat Min Exi Min Matter Collected 1306 | 205 529 398 39 . 135 Remotely . | . . . . . . Salvage Created 1506 | . 592 412 39 . 463 Parts 96 | . 35 32 5 . 24 Haulers Intercepted . | . . . . . . Recyclers Shooed . | . . . . . . Parts Field Recycled . | . . . . . . Retrieved Matter . | . . . . . . Parts Self-Destructed . | . . . . . . Prevented . | . . . . . . Kills | -11 -10 -9 -9 -9 -8 ------- Run | Scr Mat Mat Min Exi Min Combat Hostiles Destroyed 43 | . 16 13 3 . 11 Melee 3 | . 3 . . . . Guns 27 | . 11 11 1 . 4 Cannons 4 | . . . . . 4 AOE 8 | . 1 2 2 . 3 Classes Destroyed 10 | . 5 1 . . 4 Worker 2 | . . . . . 2 Builder 2 | . 1 . . . 1 Tunneler 2 | . . . . . 2 Recycler 1 | . 1 . . . . Watcher 3 | . 1 2 . . . Swarmer 22 | . 6 7 3 . 6 Grunt 16 | . 10 3 . . 3 Brawler 1 | . . . . . 1 Duelist 1 | . . . . . 1 Sentry 3 | . . 3 . . . Best Kill Streak 4 | . 4 4 3 . 4 Combat Bots Only 4 | . 3 4 3 . 3 Max Kills in Single Turn 2 | . 1 2 2 . 1 Gunslinging . | . . . . . . Exploded 2 | . 1 1 2 . 1 Melee 1 | . 1 . . . . Uniques/NPCs Destroyed . | . . . . . . Combat | -11 -10 -9 -9 -9 -8 -------- Run | Scr Mat Mat Min Exi Min Damage Taken 2258 | . 941 563 34 . 720 Core 619 | . 212 192 6 . 209 Absorbed by Shields 110 | . . 59 14 . 37 Core Remaining (%) 57 | 100 15 . . . . Volleys Fired 134 | 1 50 38 3 . 42 Largest 2 | 2 2 2 2 . 2 Hottest 113 | 40 100 46 113 . 113 Shots Fired 243 | 2 88 71 6 . 76 Gun 192 | 2 85 68 3 . 34 Cannon 42 | . . . 3 . 39 Launcher 9 | . 3 3 . . 3 Special . | . . . . . . Kinetic 113 | 2 37 68 . . 6 Thermal 86 | . 44 . 3 . 39 Explosive 9 | . 3 3 . . 3 Electromagnetic 35 | . 4 . 3 . 28 Robot Hit Streak 12 | . 8 12 7 . 7 Robot Miss Streak 5 | . 5 4 2 . 5 Penetration Max . | . . . . . . Secondary Targets 2 | . 1 1 . . . Max Gunslinging Chain 1 | . 1 1 . . . Shots Hit Robots 152 | . 64 38 3 . 47 Core Hits 73 | . 27 20 4 . 22 Critical Hits 3 | . . . . . 3 Critical Kills 2 | . . . . . 2 Critical Parts Destroyed . | . . . . . . Melee Attacks 13 | . 13 . . . . Impact 13 | . 13 . . . . Slashing . | . . . . . . Piercing . | . . . . . . Sneak Attacks 1 | . 1 . . . . Combat Hostiles . | . . . . . . Follow-up Attacks . | . . . . . . Damage Inflicted 2867 | . 1054 641 114 . 1058 Guns 1652 | . 672 565 39 . 376 Cannons 347 | . . . . . 347 Explosions 624 | . 145 72 75 . 332 Melee 237 | . 237 . . . . Ramming 7 | . . 4 . . 3 Kinetic 951 | . 322 565 . . 64 Thermal 827 | . 311 . 75 . 441 Explosive 455 | . 145 72 . . 238 Electromagnetic 390 | . 39 . 39 . 312 Impact 237 | . 237 . . . . Slashing . | . . . . . . Piercing . | . . . . . . Highest Corruption 4 | . 3 . . . 4 Average Corruption 2 | . 2 . . . 1 Corruption Purged . | . . . . . . Effects 1 | . 1 . . . . Energy Discharges 1 | . 1 . . . . Overload Shots . | . . . . . . Overflow Damage 108 | . 33 . . . 75 Projectiles . | . . . . . . Explosions 79 | . 4 . . . 75 Melee 29 | . 29 . . . . Knockbacks 1 | . 1 . . . . Impact 1 | . 1 . . . . Kinetic . | . . . . . . Secondary . | . . . . . . Self-Inflicted Damage 227 | . 86 2 28 . 111 Shots 7 | . 3 . 1 . 3 Rammed 2 | . . 1 . . 1 Targets Rammed 2 | . . 1 . . 1 Kicked . | . . . . . . Crushed . | . . . . . . Highest Temperature 500 | . 500 . 134 . 300 Average Temperature 118 | . 163 . 72 . 91 Received Heat Transfer 472 | . 273 109 . . 90 Effects 7 | . 6 . . . 1 Shutdowns 1 | . 1 . . . . Energy Bleed 2 | . 2 . . . . Interference 1 | . . . . . 1 Matter Decay 1 | . 1 . . . . Short Circuit 1 | . 1 . . . . Damage (minor) 1 | . 1 . . . . Siege Activations . | . . . . . . Robots Corrupted . | . . . . . . Combat Hostiles . | . . . . . . Parts Fried . | . . . . . . Impact Corruptions 3 | . 3 . . . . Robots Melted . | . . . . . . Combat Hostiles . | . . . . . . Parts Melted 4 | . 2 . 1 . 1 Heat Transferred 1804 | . 925 . 150 . 729 Parts Sabotaged . | . . . . . . Parts Stolen . | . . . . . . Parts Stripped . | . . . . . . Power Chain Reactions 3 | . . . 1 . 2 Missiles Intercepted . | . . . . . . Alert | -11 -10 -9 -9 -9 -8 ------- Run | Scr Mat Mat Min Exi Min Peak Influence 417 | . 200 417 196 . 213 Average Influence 126 | . 86 232 192 . 78 Maximum Alert Level 2 | . 1 2 . . 1 Low Security (%) 73 | 100 97 24 100 . 89 Level 1 26 | . 2 74 . . 10 Level 2 . | . . . . . . Level 3 . | . . . . . . Level 4 . | . . . . . . Level 5 . | . . . . . . High Security . | . . . . . . Max Security . | . . . . . . Squads Dispatched 7 | . 4 3 . . . Investigation 4 | . 2 2 . . . Extermination . | . . . . . . Reinforcement 3 | . 2 1 . . . Assault . | . . . . . . Garrison . | . . . . . . Intercept . | . . . . . . Construction Impeded . | . . . . . . Haulers Reinforced . | . . . . . . Stealth | -11 -10 -9 -9 -9 -8 --------- Run | Scr Mat Mat Min Exi Min Distress Signals . | . . . . . . Communications Jammed . | . . . . . . Distress Signals . | . . . . . . Times Spotted 63 | . 25 26 1 . 11 Peak Tracking Total 5 | . 5 5 1 . 3 Tactical Retreats 4 | . 3 1 . . . Traps | -11 -10 -9 -9 -9 -8 ------- Run | Scr Mat Mat Min Exi Min Traps Triggered 5 | . 4 1 . . . Indirectly . | . . . . . . Trap Hack Attempts . | . . . . . . Triggered . | . . . . . . Disarmed . | . . . . . . Reprogrammed . | . . . . . . Reused . | . . . . . . Traps Extracted . | . . . . . . Installed . | . . . . . . Triggered . | . . . . . . Machines | -11 -10 -9 -9 -9 -8 ---------- Run | Scr Mat Mat Min Exi Min Machines Disabled 3 | . 1 2 . . . Max in Single Turn 2 | . 1 2 . . . Machines Sabotaged . | . . . . . . Garrisons Compromised . | . . . . . . Overloaded Fab Kills . | . . . . . . Fab Network Shutdowns . | . . . . . . Hacking | -11 -10 -9 -9 -9 -8 --------- Run | Scr Mat Mat Min Exi Min Machines Accessed 6 | . 3 3 . . . Terminals 3 | . 2 1 . . . Fabricators . | . . . . . . Repair Stations 2 | . 1 1 . . . Recycling Units . | . . . . . . Scanalyzers 1 | . . 1 . . . Garrison Access . | . . . . . . Total Hacks 19 | . 8 11 . . . Successful 13 | . 3 10 . . . Failed 6 | . 5 1 . . . Catastrophic 1 | . 1 . . . . Database Lockouts . | . . . . . . Manual . | . . . . . . Terminals 7 | . 5 2 . . . Fabricators . | . . . . . . Repair Stations 6 | . 3 3 . . . Recycling Units . | . . . . . . Scanalyzers 6 | . . 6 . . . Garrison Access . | . . . . . . Terminal Hacks 3 | . 1 2 . . . Alert Level 1 | . 1 . . . . Locate Traps 1 | . . 1 . . . Investigation Status 1 | . . 1 . . . Fabricator Hacks . | . . . . . . Repair Station Hacks 4 | . 2 2 . . . Scan Component 2 | . 1 1 . . . Repair 2 | . 1 1 . . . Recycling Unit Hacks . | . . . . . . Scanalyzer 6 | . . 6 . . . Insert Component 3 | . . 3 . . . Analyze 3 | . . 3 . . . Garrison Access Hacks . | . . . . . . Unauthorized Hacks . | . . . . . . Terminals . | . . . . . . Fabricators . | . . . . . . Repair Stations . | . . . . . . Recycling Units . | . . . . . . Scanalyzers . | . . . . . . Garrison Access . | . . . . . . Data Cores Recovered . | . . . . . . Used . | . . . . . . Hacking Detections 6 | . 3 3 . . . Full Trace Events 3 | . 2 1 . . . Feedback Events . | . . . . . . Feedback Blocked . | . . . . . . Robot Schematics Acquired . | . . . . . . Robots Built . | . . . . . . Matter . | . . . . . . Time . | . . . . . . Total Robot Build Rating . | . . . . . . Part Schematics Acquired 3 | . . 3 . . . Parts Built . | . . . . . . Matter . | . . . . . . Time . | . . . . . . Total Part Build Rating . | . . . . . . Parts Repaired 2 | . 1 1 . . . Time 64 | . 38 26 . . . Parts Recycled . | . . . . . . Recycled Matter . | . . . . . . Retrieved Matter . | . . . . . . Retrieved Components . | . . . . . . Parts Scanalyzed 3 | . . 3 . . . Part Schematics Acquired 3 | . . 3 . . . Parts Damaged . | . . . . . . Bothacking | -11 -10 -9 -9 -9 -8 ------------ Run | Scr Mat Mat Min Exi Min Used RIF Installer . | . . . . . . Robots Hacked . | . . . . . . Non-combat . | . . . . . . Combat . | . . . . . . Robot Hacks Applied . | . . . . . . Relay Couplers Released . | . . . . . . Robots Rewired . | . . . . . . Allies Hacked . | . . . . . . Hacks Repelled . | . . . . . . Allies | -11 -10 -9 -9 -9 -8 -------- Run | Scr Mat Mat Min Exi Min Total Allies . | . . . . . . Largest Group . | . . . . . . Highest-Rated Group . | . . . . . . Highest-Rated Ally . | . . . . . . Total Orders . | . . . . . . Ally Attacks . | . . . . . . Total Damage . | . . . . . . Kills . | . . . . . . Allies Corrupted . | . . . . . . Allies Melted . | . . . . . . Intel | -11 -10 -9 -9 -9 -8 ------- Run | Scr Mat Mat Min Exi Min Robot Analysis Total . | . . . . . . Derelict Logs Recovered 1 | . . . 1 . . Drone Launches . | . . . . . . Drone Recoveries . | . . . . . . Exploration | -11 -10 -9 -9 -9 -8 ------------- Run | Scr Mat Mat Min Exi Min Turns Passed 2341 | 98 796 685 56 44 662 Spaces Moved 1491 | 67 418 429 40 37 500 Core 23 | 19 4 . . . . Treads . | . . . . . . Legs 1264 | 48 414 429 40 37 296 Wheels 204 | . . . . . 204 Hover . | . . . . . . Flight . | . . . . . . Fastest Speed 50 | 50 100 120 120 120 80 Average Speed 115 | 119 123 120 120 120 103 Slowest Speed 150 | 150 150 120 120 120 120 Overloaded Moves . | . . . . . . Propulsion Burnouts . | . . . . . . Robots Hopped . | . . . . . . Cave-ins Triggered 1 | . . . . . 1 Exploration Rate (%) 30 | 4 50 29 8 8 84 Regions Visited 5 Branch Regions 3 Pre-discovered Areas . | . . . . . . Known Exits Taken . | . . . . . . Unknown Exits Taken 5 | 1 1 1 1 1 . Scrap Searched 1 | . . . . . 1 Spaces Dug . | . . . . . . Terrain Destroyed 68 | . 19 18 3 . 28 Melee . | . . . . . . Projectile . | . . . . . . AOE 68 | . 19 18 3 . 28 Actions | -11 -10 -9 -9 -9 -8 --------- Run | Scr Mat Mat Min Exi Min Total 1838 | 81 591 524 42 36 564 Wait 51 | . 33 12 . . 6 Move 1486 | 66 417 428 39 36 500 Hop . | . . . . . . Pick Up 38 | 8 19 11 . . . Fast Attach 22 | 4 9 4 . . 5 Attach 13 | 2 6 4 . . 1 Detach 1 | . 1 . . . . Swap 41 | . 20 15 . . 6 Drop 37 | . 23 11 . . 3 Fire 134 | 1 50 38 3 . 42 Melee 13 | . 13 . . . . Ram 1 | . . . . . 1 Kick 1 | . . 1 . . . Crush . | . . . . . . Escape Stasis . | . . . . . . Rewire . | . . . . . . Trap . | . . . . . . Miscellaneous . | . . . . . . Route ------- -11/Scrapyard -10/Materials -9/Materials -9/Mines -9/Exiles -8/Mines (discovered 1 exit: [*Mat]) History --------- Turn | Location | Event 31 | -11/Scrapyard | Discovered new exit (range 13) 99 | -11/Scrapyard | Entered Materials 317 | -10/Materials | Core integrity fell below 50% 324 | -10/Materials | Build established: Mutant 727 | -10/Materials | Discovered new exit (range 15) 813 | -10/Materials | Repaired Lgt. Nuclear Core 816 | -10/Materials | Core integrity fell below 20% 876 | -10/Materials | Build established: Scavenger-Mutant 895 | -10/Materials | Entered another Materials area 895 | -9/Materials | Evolved 2 slots: Propulsion x2 1154 | -9/Materials | Repaired Sml. Storage Unit? 1428 | -9/Materials | Build established: Mutant 1520 | -9/Materials | Discovered new exit (range 16) 1580 | -9/Materials | Entered Mines 1581 | -9/Mines | Assembled infested the area 1614 | -9/Mines | Met a Derelict bent on vengeance 1619 | -9/Mines | Learned Materials garrison access intel 1629 | -9/Mines | Deemed a non-threat by the Exiles lab entrance 1630 | -9/Mines | Discovered new exit (range 5) 1636 | -9/Mines | Entered Exiles 1664 | -9/Exiles | Discovered new exit (range 14) 1680 | -9/Exiles | Entered Mines 1782 | -8/Mines | Build established: Scavenger-Mutant 1896 | -8/Mines | Discovered new exit (range 11) 1933 | -8/Mines | Core integrity fell below 50% 2343 | -8/Mines | Crushed by falling debris 2343 | -8/Mines | Smashed by cave-in Last Messages --------------- 02266_ Slammed into R-06 Scavenger. 02285_ T-07 Excavator destroyed. 02320_ G-47 Trooper IFF system glitched. 02323_ G-47 Trooper destroyed. 02325_ Terrain Scan Processor destroyed. 02325_ System corrupted by crushing effect (+1). 02326_ B-36 Bruiser suffers critical hit. 02329_ Chain reaction triggered in Rnf. Ion Engine. 02329_ Adv. Beam Cannon destroyed. 02329_ Destroyed Adv. Beam Cannon. 02329_ Wheel destroyed. 02329_ Destroyed Wheel. 02330_ Knocked back. 02332_ Overheating: System interference. 02332_ Imp. EM Shotgun temporarily disabled. 02339_ Wheel destroyed. 02339_ System corrupted by crushing effect (+3). 02340_ B-36 Bruiser destroyed. 02343_ The unstable cave ceiling collapses. 02343_ Crushed by falling debris. Map ----- +----------------------------------------------------+ | ????????????????# ### ##??????# ## # | | ???????????????? #?####???????# ##### ###### | | ??????????????? #?######?????# #???# #????? | | ?????????????? ?? #?????# ##### #????? | | ??????????????# ! ??? #?????# #????? | | ??????????????## [##???# #?????# #######????? | | ???????????????###?????# #?????# #??????????? | | ???????????????????????# #######|####???????? | | ???????????????????????# %* #???????? | | ???????????????????????# ########## #???????? | | ???????????????????????# ######???# #???????? | | ???????????????????????# ##??# #???????? | | ???????????????????????# #??# #???????? | | ???????????????????????#### #??# #???????? | | ?????????????????????????## #?## ######### | | ????????????????????????## ##?# # | | ?????????????????#####?## #??# # | | ????????????????## ### ##?# # | | ???????????????## """" #?# """ """ # | | ???????????##### """" ## """%""" # | | ???????????# """" ## """ """ # | | ???????????# ## # | | ???????????# ## ## ### """ """ # | | ???????????????# #### ##?# """ """ # | | ???????????????## ####??####??# """ """ # | | ????????????????####=@#???????????# # | | ?????????????????#;;%##???????????# """ """ # | | ??????????????# =%!"#???????????# """ """ # | | ??????????????# ##;;"##???????????# """ """ # | | ?????????????????# ###????????????# # | | ?????????????????##???????????????# # | | ??????????????????????????????????######## ### | | ?????????????????????????????????????????# #?# | | ?????????????????????????????????????????#%### | | ?????????????????????????????????????????#]%[ | | ?????????????????????????????????????????##### | | ?????????????????????????????????????????????# | | ?????????????????????????????????????????????? | | ?????????????????????????????????????????????? | | ?????????????????????????????????????????????? | | ?????????????????????????????????????????????? | | ?????????????????????????????????????????????? | | ?????????????????????????????????????????????? | | ?????????????????????????????????????????????? | | ?????????????????????????????????????????????? | | ?????????????????????????????????????????????? | | | | | | | | | +----------------------------------------------------+ Best States ------------- Heat Dissipation 38 Energy Generation 14 Energy Capacity 265 Matter Stores 300 Matter Capacity 300 Sight Range 16 Terrain Scan Density 85 Evasion (%) 44 Item Schematics ----------------- Lgt. Nuclear Core | -9/Materials | Scanalyzed Aluminum Leg | -9/Materials | Scanalyzed Hvy. Assault Rifle | -9/Materials | Scanalyzed Robot Schematics ------------------ None Fabricated ------------ Nothing Alien Tech Used ----------------- None Achievements -------------- None Challenges ------------ None Game ------ Seed DerelictLayeredDesublimator Manual? 0 Play Time 00:38:22 Cumulative 4.8 hours Start 2019.12.21 @ 17:29:39 End 2019.12.21 @ 18:08:38 Sessions 1 Manual Loads 0 Difficulty Rogue Special Mode None Game No. 13 Rogue 13 Adventurer 0 Explorer 0 Win Type - Total 0 Types 0/0/0/0/0/0/0 Lore% 3 Gallery% 6 Achievement% 6 Wizard Run 0 Options --------- ASCII 0 Keyboard 0 Movement Mouse Keybinds 0 Fullscreen 1 Font 18/X11 Map View 76x50 Tactical HUD 1 Map Filters NONE Filters NONE Steam 1 RUN: b845af9c-4557-4b06-b1d7-34fcd73f0bf5